bitfinex/quotes_SOLUSD_20251201
["timestamp","ask_amount","ask_price","bid_price","bid_amount"]
[1764600318803,8.70766276,126.01,125.96,0.7]
[1764600318980,17.51760768,126.02,125.98,8.70766276]
[1764600319176,0.14216157,126.01,125.96,0.7]
[1764600319404,0.14216157,125.97,125.94,8.70766276]
[1764600319594,8.70766276,125.96,125.9,4.83973175]
[1764600319774,16.308864,126.0,125.93,8.70766276]
[1764600319974,17.65976925,125.99,125.95,8.70766276]
[1764600320173,0.14216157,125.99,125.93,16.308864]
[1764600320401,8.95210649,125.99,125.96,8.70766276]
[1764600320598,0.14216157,125.99,125.97,8.70766276]
[1764600320779,0.14216157,126.0,125.97,8.70766276]
[1764600320982,0.14216157,125.98,125.94,0.7]
[1764600321206,0.14216157,125.98,125.95,8.70766276]
[1764600321711,0.14216157,125.99,125.96,9.40766276]
[1764600322015,7.93663956,126.0,125.97,8.70766276]
[1764600322220,7.9358904,126.01,125.98,8.70766276]
[1764600322381,7.9358904,126.01,125.98,9.40766276]
[1764600322893,16.64355316,126.01,125.98,0.7]
[1764600323318,7.9339892,126.04,125.99,9.40766276]
[1764600323609,8.70766276,126.03,125.99,9.40766276]
[1764600323792,8.70766276,126.02,125.99,0.7]
[1764600324315,0.14216157,126.02,125.99,9.40766276]
[1764600324509,7.9339892,126.04,126.01,8.70766276]
[1764600324678,7.9339892,126.04,126.02,8.70766276]
[1764600324879,7.93335977,126.05,126.02,8.70766276]
[1764600325114,7.93335977,126.05,126.02,9.40766276]
[1764600325285,7.93335977,126.05,126.03,9.40766276]
[1764600326112,7.93273044,126.06,126.03,8.70766276]
[1764600326409,7.93220745,126.07,126.05,8.70766276]
[1764600326786,7.93220745,126.07,126.05,0.72]
[1764600327714,8.80994492,126.09,126.06,8.70766276]
[1764600327889,8.80994492,126.09,126.03,7.93451759]
[1764600327890,8.70766276,126.08,126.04,8.70766276]
[1764600328091,0.14216157,126.06,126.01,0.69]
[1764600328292,8.70766276,126.05,126.01,8.70766276]
[1764600328519,0.14216157,126.04,125.99,7.93706613]
[1764600328692,0.14216157,126.04,126.0,8.70766276]
[1764600328898,8.84982433,126.04,126.0,9.39766276]
[1764600329108,7.93461874,126.03,126.0,9.39766276]
[1764600329314,8.84982433,126.02,125.97,7.93792342]
[1764600329519,8.70766276,126.01,125.97,17.33558618]
[1764600329695,8.70766276,126.01,125.97,8.62792342]
[1764600330006,3.74216157,126.02,125.98,0.69]
[1764600330209,8.70766276,126.01,125.98,0.69]
[1764600330712,3.74216157,126.02,125.98,0.69]
[1764600331016,20.38528087,126.02,125.98,9.39766276]
[1764600331503,20.38528087,126.02,125.99,0.69]
[1764600332288,20.38528087,126.02,125.9,4.83973175]
[1764600332289,8.70766276,126.0,125.9,4.83973175]
[1764600332599,8.80994492,126.01,125.95,8.70766276]
[1764600332600,12.30766276,125.99,125.95,8.70766276]
[1764600332802,8.70766276,125.98,125.94,8.70766276]
[1764600333007,7.93839803,125.97,125.94,8.70766276]
[1764600333314,12.30766276,125.99,125.95,9.39766276]
[1764600333706,3.6,125.99,125.96,9.39766276]
[1764600334013,8.70766276,126.0,125.96,9.39766276]
[1764600334191,12.55210649,126.01,125.98,8.70766276]
[1764600334192,3.6,126.01,125.98,8.70766276]
[1764600334396,12.30766276,126.01,125.97,9.39766276]
[1764600334596,20.24367035,126.01,125.97,9.39766276]
[1764600334804,11.53600759,126.01,125.98,0.69]
[1764600334999,8.70766276,126.01,125.98,9.39766276]
[1764600335309,16.64368827,126.01,125.98,0.69]
[1764600335515,8.84982433,126.0,125.9,44.55128493]
[1764600335709,8.84982433,126.0,125.96,8.70766276]
[1764600336222,8.84982433,126.0,125.97,0.69]
[1764600337104,20.2431947,126.02,125.98,8.70766276]
[1764600337299,8.70766276,126.01,125.97,9.39766276]
[1764600337506,8.70766276,125.99,125.97,0.69]
[1764600337702,8.70766276,126.01,125.98,0.69]
[1764600338626,8.84982433,126.01,125.98,0.69]
[1764600339208,16.7860901,126.01,125.98,0.69]
[1764600339399,8.70766276,126.01,125.98,0.69]
[1764600339620,31.37337759,126.02,125.98,0.69]
[1764600339915,8.70766276,126.01,125.98,0.69]
[1764600340327,11.53525666,126.02,125.99,8.70766276]
[1764600340500,7.93363676,126.05,126.0,9.39766276]
[1764600340705,16.64129952,126.05,126.01,9.39766276]
[1764600341116,20.24062151,126.06,126.02,9.39766276]
[1764600341421,12.30766276,126.09,126.02,8.62494865]
[1764600341602,12.30766276,126.09,126.05,8.70766276]
[1764600341603,3.6,126.09,126.05,8.70766276]
[1764600342029,7.93021411,126.1,126.06,0.69]
[1764600342196,8.70766276,126.08,126.04,0.69]
[1764600342400,8.70766276,126.08,126.04,9.39766276]
[1764600342825,3.6,126.09,126.02,7.93494865]
[1764600342826,8.70766276,126.07,126.02,7.93494865]
[1764600343015,8.70766276,126.06,126.02,0.69]
[1764600343326,7.93335977,126.05,126.02,0.69]
[1764600343528,16.64102253,126.05,126.02,0.69]
[1764600343821,7.93335977,126.05,126.02,9.39766276]
[1764600343999,7.93335977,126.05,126.03,0.69]
[1764600344623,7.93298067,126.06,126.03,9.39766276]
[1764600344838,3.6,126.08,126.05,8.70766276]
[1764600345015,7.93084304,126.09,126.05,8.70766276]
[1764600345208,7.93084304,126.09,126.06,9.39766276]
[1764600345405,7.93048884,126.1,126.07,8.70766276]
[1764600345629,7.92891258,126.13,126.09,8.70766276]
[1764600345930,7.92581437,126.17,126.09,16.308864]
[1764600346245,7.92581437,126.17,126.1,0.69]
[1764600346530,27.74035031,126.17,126.11,7.92958528]
[1764600346731,36.44801307,126.17,126.12,8.70766276]
[1764600346905,36.44801307,126.17,126.13,8.70766276]
[1764600347102,27.74035031,126.17,126.13,9.39766276]
[1764600347306,36.44801307,126.17,126.13,9.39766276]
[1764600347935,8.70766276,126.15,126.1,7.93021411]
[1764600348122,8.70766276,126.12,126.06,0.69]
[1764600348433,8.70766276,126.11,126.07,8.70766276]
[1764600348742,3.6,126.12,126.07,9.39766276]
[1764600349030,7.93057993,126.1,126.07,0.69]
[1764600349231,16.63824269,126.1,126.07,0.69]
[1764600349437,7.93057993,126.1,126.07,9.39766276]
[1764600350210,8.07189363,126.11,126.06,16.64037843]
[1764600350414,23.5654555,126.12,126.06,16.64037843]
[1764600350415,13.6869999,126.12,126.08,14.3769999]
[1764600350831,13.6869999,126.12,126.09,0.69]
[1764600351006,21.61603919,126.12,126.08,13.6869999]
[1764600351210,0.14216157,126.11,126.05,7.93335977]
[1764600351444,13.6869999,126.08,126.03,0.69]
[1764600351610,25.11880892,126.1,126.03,14.3769999]
[1764600351812,13.6869999,126.08,126.03,14.3769999]
[1764600352026,13.6869999,126.08,126.04,0.69]
[1764600352426,25.11880892,126.1,126.04,14.3769999]
[1764600352733,13.6869999,126.08,126.04,14.3769999]
[1764600352915,3.74216157,126.11,126.05,14.3769999]
[1764600353110,7.93084304,126.09,126.05,14.3769999]
[1764600353312,21.61784294,126.09,126.05,14.3769999]
[1764600353532,21.61784294,126.09,126.04,13.6869999]
[1764600353739,7.93084304,126.09,126.06,0.69]
[1764600353921,7.93084304,126.09,126.06,14.3769999]
[1764600354440,16.73894098,126.12,126.08,13.6869999]
[1764600354616,30.42594088,126.12,126.07,14.3769999]
[1764600355032,21.61599596,126.12,126.08,22.30843245]
[1764600355448,21.61599596,126.12,126.09,0.69]
[1764600355737,41.43838733,126.12,126.09,0.69]
[1764600356037,8.80994492,126.15,126.1,13.6869999]
[1764600356237,27.74035031,126.17,126.12,13.6869999]
[1764600356422,7.92581437,126.17,126.13,13.6869999]
[1764600356627,0.2,126.18,126.15,13.6869999]
[1764600356876,0.2,126.18,126.16,13.6869999]
[1764600357021,3.8,126.18,126.11,24.23844928]
[1764600357228,13.6869999,126.17,126.12,13.6869999]
[1764600357422,3.8,126.18,126.14,13.6869999]
[1764600357627,37.2999655,126.18,126.14,14.3969999]
[1764600357824,45.22529928,126.18,126.14,0.71]
[1764600358024,0.2,126.18,126.16,13.6869999]
[1764600358226,0.2,126.18,126.17,13.6869999]
[1764600358631,0.2,126.18,126.17,14.3969999]
[1764600360139,0.2,126.18,126.16,13.6869999]
[1764600360346,27.73048138,126.22,126.17,13.6869999]
[1764600360532,7.92322669,126.22,126.19,13.6869999]
[1764600360723,13.6869999,126.21,126.16,7.92594047]
[1764600361041,7.92204705,126.23,126.2,13.6869999]
[1764600361353,7.91891035,126.28,126.22,13.6869999]
[1764600361532,7.91891035,126.28,126.23,0.71]
[1764600361735,7.91891035,126.28,126.24,13.6869999]
[1764600361949,7.91891035,126.28,126.23,0.71]
[1764600362134,0.2,126.29,126.27,13.6869999]
[1764600362334,0.2,126.29,126.28,17.2869999]
[1764600362571,17.2869999,126.38,126.3,13.6869999]
[1764600362729,7.91327055,126.37,126.33,13.6869999]
[1764600363036,21.60027045,126.37,126.33,13.6869999]
[1764600363229,21.60027045,126.37,126.32,7.91604894]
[1764600363430,21.60027045,126.37,126.33,14.3969999]
[1764600363626,13.6869999,126.36,126.3,7.91765637]
[1764600363825,13.6869999,126.36,126.29,13.6869999]
[1764600363826,13.6869999,126.33,126.29,13.6869999]
[1764600364255,36.50639185,126.37,126.3,0.71]
[1764600364256,0.14216157,126.35,126.3,0.71]
[1764600364426,27.69644693,126.37,126.33,13.6869999]
[1764600364627,7.91327055,126.37,126.34,13.6869999]
[1764600365228,7.91232787,126.39,126.35,14.3969999]
[1764600365429,7.90951514,126.43,126.38,13.6869999]
[1764600365649,13.6869999,126.42,126.38,13.6869999]
[1764600365847,13.6869999,126.41,126.36,0.71]
[1764600366051,13.6869999,126.41,126.36,14.3969999]
[1764600366259,13.6869999,126.41,126.37,13.6869999]
[1764600366428,13.6869999,126.42,126.37,14.3969999]
[1764600366624,13.6869999,126.41,126.37,0.71]
[1764600366848,13.6869999,126.4,126.35,0.71]
[1764600367058,8.05417992,126.39,126.33,7.91566007]
[1764600367229,21.74117982,126.39,126.34,14.3969999]
[1764600367435,8.05417992,126.39,126.35,13.6869999]
[1764600367636,21.74117982,126.39,126.35,14.3969999]
[1764600367858,21.59901825,126.39,126.36,0.71]
[1764600368032,8.80994492,126.36,126.29,19.79447255]
[1764600368241,13.6869999,126.32,126.27,22.31653739]
[1764600368758,0.14216157,126.32,126.28,14.3969999]
[1764600368956,13.6869999,126.33,126.29,13.6869999]
[1764600369164,7.91563459,126.34,126.3,13.6869999]
[1764600369373,16.308864,126.39,126.33,13.6869999]
[1764600369529,7.91316786,126.38,126.34,13.6869999]
[1764600369732,13.6869999,126.37,126.33,16.308864]
[1764600370245,21.59953261,126.39,126.35,13.6869999]
[1764600370563,21.59953261,126.39,126.34,0.71]
[1764600370564,11.4913924,126.4,126.34,0.71]
[1764600370736,25.1783923,126.4,126.35,13.6869999]
[1764600370936,3.58,126.4,126.37,13.6869999]
[1764600371130,33.0290453,126.42,126.38,13.6869999]
[1764600371131,22.49694482,126.42,126.38,13.6869999]
[1764600371440,0.14216157,126.41,126.37,13.6869999]
[1764600371629,13.6869999,126.41,126.37,13.6869999]
[1764600371831,13.6869999,126.41,126.38,0.71]
[1764600372138,52.80444238,126.42,126.38,0.71]
[1764600372139,37.90614536,126.42,126.38,0.71]
[1764600372344,13.6869999,126.41,126.38,0.71]
[1764600372638,43.99449746,126.42,126.38,0.71]
[1764600372828,57.68149736,126.42,126.38,0.71]
[1764600373033,0.14216157,126.41,126.38,0.71]
[1764600373351,21.5983923,126.4,126.35,20.598864]
[1764600373655,8.95210649,126.35,126.28,0.71]
[1764600373963,13.6869999,126.32,126.28,0.71]
[1764600374129,0.14216157,126.34,126.28,14.3969999]
[1764600374451,13.6869999,126.33,126.29,0.71]
[1764600374640,13.6869999,126.33,126.29,14.3969999]
[1764600374844,67.24683543,126.4,126.31,13.6869999]
[1764600375043,13.6869999,126.37,126.33,13.6869999]
[1764600375438,21.60057021,126.37,126.34,0.71]
[1764600375857,13.6869999,126.36,126.31,14.3969999]
[1764600376351,7.91357031,126.37,126.33,13.6869999]
[1764600376542,22.49694482,126.39,126.34,14.3969999]
[1764600376736,21.59921958,126.39,126.34,0.71]
[1764600377038,7.91221968,126.39,126.35,14.3969999]
[1764600377353,17.2669999,126.4,126.36,13.6869999]
[1764600377554,13.6869999,126.38,126.34,13.6869999]
[1764600377858,13.6869999,126.38,126.34,14.3969999]
[1764600378060,13.6869999,126.36,126.32,13.6869999]
[1764600378270,13.6869999,126.36,126.32,14.3969999]
[1764600378451,13.6869999,126.36,126.32,0.71]
[1764600378651,13.6869999,126.36,126.32,14.3969999]
[1764600379038,3.72216157,126.37,126.32,14.3969999]
[1764600379236,13.6869999,126.35,126.32,0.71]
[1764600379446,13.82916147,126.35,126.3,7.91765637]
[1764600379769,3.58,126.34,126.27,17.018864]
[1764600380068,3.58,126.34,126.29,13.6869999]
[1764600380245,13.6869999,126.33,126.29,13.6869999]
[1764600380445,17.2669999,126.34,126.3,14.3969999]
[1764600380949,0.6,126.4,126.33,13.6869999]
[1764600381149,13.6869999,126.39,126.35,13.6869999]
[1764600381555,7.9126444,126.38,126.35,14.3969999]
[1764600381767,21.59895848,126.4,126.36,0.71]
[1764600382069,7.91195858,126.4,126.37,13.6869999]
[1764600382450,3.58,126.41,126.38,0.71]
[1764600382652,3.58,126.41,126.38,14.3969999]
[1764600382863,25.17782809,126.41,126.37,13.6869999]
[1764600383058,25.17782809,126.41,126.36,14.3969999]
[1764600383556,25.17782809,126.41,126.37,14.3969999]
[1764600384158,13.82916147,126.4,126.35,7.9140347]
[1764600384363,0.14216157,126.38,126.33,16.308864]
[1764600384580,13.6869999,126.37,126.32,38.62226668]
[1764600384766,13.6869999,126.37,126.32,24.93526678]
[1764600384954,13.6869999,126.37,126.33,14.3969999]
[1764600385778,7.9138968,126.36,126.33,14.3969999]
[1764600385965,13.6869999,126.34,126.3,0.67]
[1764600386168,13.6869999,126.33,126.3,0.67]
[1764600386369,13.6869999,126.31,126.26,14.3569999]
[1764600386570,13.6869999,126.3,126.26,13.6869999]
[1764600386773,0.14216157,126.31,126.24,3.58]
[1764600386774,13.82916147,126.31,126.27,14.3569999]
[1764600387077,13.82916147,126.31,126.27,9.7892444]
[1764600387275,13.6869999,126.3,126.26,13.6869999]
[1764600387479,21.60479592,126.3,126.26,13.6869999]
[1764600387859,13.6869999,126.29,126.25,21.60759453]
[1764600388065,33.47834189,126.32,126.28,13.6869999]
[1764600388267,7.91702953,126.31,126.28,13.6869999]
[1764600388579,13.6869999,126.29,126.25,37.91645853]
[1764600388753,31.94960335,126.31,126.28,13.6869999]
[1764600388754,11.49702953,126.31,126.28,13.6869999]
[1764600388956,7.91702953,126.31,126.28,13.6869999]
[1764600389152,0.14216157,126.3,126.26,0.72]
[1764600389372,21.60528321,126.29,126.25,21.60759453]
[1764600389685,7.91640278,126.32,126.26,0.72]
[1764600389863,13.6869999,126.31,126.27,13.6869999]
[1764600390180,7.91579697,126.33,126.29,13.6869999]
[1764600390368,7.91579697,126.33,126.3,13.6869999]
[1764600390562,7.91514959,126.34,126.28,17.028864]
[1764600390767,41.39002348,126.34,126.3,13.6869999]
[1764600390967,42.05002348,126.34,126.3,13.6869999]
[1764600391397,22.26214949,126.34,126.3,13.6869999]
[1764600391760,8.80994492,126.37,126.33,13.6869999]
[1764600391960,0.66,126.38,126.34,13.6869999]
[1764600392279,0.14216157,126.37,126.33,13.6869999]
[1764600392477,13.6869999,126.36,126.31,0.72]
[1764600392682,14.3469999,126.36,126.3,16.308864]
[1764600392986,4.24,126.36,126.31,13.6869999]
[1764600393183,3.58,126.36,126.33,13.6869999]
[1764600393358,7.91452314,126.35,126.33,13.6869999]
[1764600393558,0.14216157,126.35,126.31,0.72]
[1764600393755,0.14216157,126.35,126.32,13.6869999]
[1764600393959,0.66,126.34,126.3,7.91765637]
[1764600394183,0.14216157,126.35,126.31,13.6869999]
[1764600394381,0.14216157,126.35,126.32,13.6869999]
[1764600394590,7.91329894,126.37,126.33,13.6869999]
[1764600394796,21.60029884,126.37,126.33,13.6869999]
[1764600394983,22.26029884,126.37,126.33,13.6869999]
[1764600396577,8.80994492,126.4,126.36,13.6869999]
[1764600396888,22.49694482,126.4,126.36,13.6869999]
[1764600397073,0.80216157,126.39,126.35,13.6869999]
[1764600397681,7.9126444,126.38,126.35,13.6869999]
[1764600397889,8.71426991,126.39,126.35,14.4069999]
[1764600398079,8.71433034,126.39,126.35,14.4069999]
[1764600398989,22.40133024,126.39,126.35,14.4069999]
[1764600399309,42.18137612,126.39,126.35,13.6869999]
[1764600399466,14.3469999,126.38,126.34,13.6869999]
[1764600399671,7.91327055,126.37,126.34,13.6869999]
[1764600400302,7.91327055,126.37,126.34,14.4069999]
[1764600400770,7.91327055,126.37,126.35,13.6869999]
[1764600401690,7.9126444,126.38,126.33,7.91554219]
[1764600401894,8.5726444,126.38,126.33,8.63554219]
[1764600402091,8.5726444,126.38,126.34,13.6869999]
[1764600402288,22.2596443,126.38,126.34,13.6869999]
[1764600402508,7.9126444,126.38,126.36,13.6869999]
[1764600402807,7.9126444,126.38,126.35,13.6869999]
[1764600403381,7.9126444,126.38,126.35,14.4069999]
[1764600403603,7.9126444,126.38,126.37,13.6869999]
[1764600403907,7.9126444,126.38,126.36,13.6869999]
[1764600406804,25.1796443,126.38,126.34,7.91485284]
[1764600406975,9.46994492,126.4,126.37,13.6869999]
[1764600407173,9.46994492,126.4,126.35,4.3]
[1764600407174,7.91190542,126.4,126.35,4.3]
[1764600407373,7.91190542,126.4,126.37,13.6869999]
[1764600407598,7.91076655,126.41,126.37,21.6002212]
[1764600407788,7.91009477,126.43,126.4,13.6869999]
[1764600407992,8.57009477,126.43,126.39,13.6869999]
[1764600408174,4.13583407,126.47,126.42,13.6869999]
[1764600408375,8.76689802,126.48,126.42,3.58]
[1764600408585,13.6869999,126.45,126.41,13.6869999]
[1764600408792,13.6869999,126.45,126.4,19.888864]
[1764600409107,0.66,126.45,126.41,13.6869999]
[1764600409276,13.6869999,126.44,126.4,34.2958639]
[1764600409498,22.2557857,126.45,126.41,13.6869999]
[1764600410005,8.5687858,126.45,126.41,13.6869999]
[1764600410195,22.2557857,126.45,126.41,13.6869999]
[1764600410693,0.66,126.45,126.42,13.6869999]
[1764600411090,8.56877107,126.45,126.42,13.6869999]
[1764600411294,0.66,126.45,126.42,13.6869999]
[1764600411721,8.56856351,126.45,126.43,13.6869999]
[1764600411924,3.58,126.46,126.44,13.6869999]
[1764600412123,14.3469999,126.45,126.41,13.6869999]
[1764600412297,0.14216157,126.43,126.4,13.6869999]
[1764600412605,23.15694482,126.44,126.4,8.69040292]
[1764600412606,18.16034784,126.44,126.4,8.69040292]
[1764600412802,0.66,126.44,126.41,8.69040292]
[1764600413403,8.69040292,126.42,126.38,8.69040292]
[1764600413806,0.66,126.42,126.38,16.60300702]
[1764600414007,3.72216157,126.43,126.4,8.69040292]
[1764600414205,3.58,126.43,126.41,8.69040292]
[1764600414403,3.58,126.46,126.42,8.69040292]
[1764600414606,3.58,126.46,126.44,8.69040292]
[1764600414812,11.68654867,126.48,126.45,8.69040292]
[1764600415009,0.2,126.48,126.46,8.69040292]
[1764600415211,0.2,126.48,126.43,16.308864]
[1764600415416,0.2,126.48,126.46,8.69040292]
[1764600415624,0.2,126.48,126.47,8.69040292]
[1764600416199,0.2,126.48,126.47,9.38040292]
[1764600416503,0.2,126.51,126.48,16.308864]
[1764600416695,0.2,126.51,126.5,8.69040292]
[1764600417512,0.2,126.51,126.5,16.59554125]
[1764600418121,8.76453002,126.51,126.46,3.58]
[1764600418420,8.76453002,126.51,126.49,8.69040292]
[1764600418719,8.76453002,126.51,126.46,3.58]
[1764600418720,0.66,126.5,126.47,8.69040292]
[1764600418920,8.83256449,126.49,126.45,8.69040292]
[1764600419423,9.49256449,126.49,126.45,8.69040292]
[1764600419622,0.2,126.51,126.48,8.69040292]
[1764600419836,0.2,126.51,126.49,8.69040292]
[1764600420320,0.2,126.51,126.5,8.69040292]
[1764600420529,0.86,126.51,126.45,7.90826413]
[1764600420830,0.2,126.51,126.48,8.69040292]
[1764600421127,0.2,126.51,126.44,8.69040292]
[1764600421128,0.14216157,126.48,126.44,8.69040292]
[1764600421318,0.14216157,126.49,126.46,8.69040292]
[1764600421521,0.14216157,126.49,126.36,19.784742]
[1764600421522,8.95210649,126.47,126.36,19.784742]
[1764600421709,0.14216157,126.44,126.37,3.58]
[1764600421910,0.14216157,126.44,126.39,16.308864]
[1764600422424,31.25673571,126.46,126.42,8.69040292]
[1764600422613,8.05088124,126.45,126.4,7.9113924]
[1764600422814,8.05088124,126.45,126.42,8.69040292]
[1764600423008,8.71088124,126.45,126.42,8.69040292]
[1764600423310,7.90741936,126.47,126.44,8.69040292]
[1764600423615,7.90741936,126.47,126.46,8.69040292]
[1764600423823,0.80216157,126.46,126.4,7.9113924]
[1764600424008,8.83256449,126.44,126.4,7.9113924]
[1764600424207,8.69040292,126.45,126.4,7.9113924]
[1764600424405,0.66,126.45,126.42,8.69040292]
[1764600424624,40.60535608,126.47,126.43,8.69040292]
[1764600424936,7.90638836,126.48,126.45,8.69040292]
[1764600425144,7.90638836,126.48,126.46,8.69040292]
[1764600425315,8.56638836,126.48,126.46,8.69040292]
[1764600425515,8.56638836,126.48,126.45,8.69040292]
[1764600426112,13.07256449,126.47,126.43,8.69040292]
[1764600426337,13.07256449,126.47,126.42,28.46575492]
[1764600426656,8.83256449,126.45,126.4,8.69040292]
[1764600426823,0.14216157,126.45,126.41,8.69040292]
[1764600427136,0.66,126.44,126.41,8.69040292]
[1764600427345,3.58,126.47,126.41,8.69040292]
[1764600427346,4.24,126.47,126.43,8.69040292]
[1764600427650,4.24,126.47,126.44,8.69040292]
[1764600427944,27.67235926,126.48,126.46,8.69040292]
[1764600428312,8.56638836,126.48,126.46,8.69040292]
[1764600428510,31.24868397,126.5,126.47,8.69040292]
[1764600428934,31.90868397,126.5,126.47,8.69040292]
[1764600429241,9.35040292,126.49,126.45,16.59819343]
[1764600429541,9.35040292,126.49,126.45,7.90779051]
[1764600429712,9.35040292,126.49,126.45,16.59819343]
[1764600429713,0.66,126.48,126.45,16.59819343]
[1764600429913,27.66868397,126.5,126.47,8.69040292]
[1764600430215,0.66,126.49,126.44,7.90888959]
[1764600430434,0.66,126.49,126.46,8.69040292]
[1764600430737,0.66,126.49,126.45,8.69040292]
[1764600431038,0.34216157,126.51,126.47,8.69040292]
[1764600431241,0.2,126.51,126.5,8.69040292]
[1764600431555,0.2,126.51,126.46,0.51]
[1764600431713,0.2,126.51,126.5,8.69040292]
[1764600432040,0.2,126.51,126.5,16.59554125]
[1764600432243,0.2,126.51,126.5,17.10554125]
[1764600432454,0.2,126.52,126.5,36.86838709]
[1764600432621,0.2,126.52,126.51,9.20040292]
[1764600432828,0.2,126.52,126.49,7.90554032]
[1764600433024,0.86,126.52,126.5,8.69040292]
[1764600433753,8.10433216,126.52,126.49,3.58]
[1764600433922,17.50034784,126.5,126.41,27.68768293]
[1764600434127,16.5969634,126.48,126.44,8.69040292]
[1764600434641,0.66,126.47,126.44,8.69040292]
[1764600434844,3.58,126.49,126.46,8.69040292]
[1764600435044,3.58,126.49,126.47,8.69040292]
[1764600435245,3.58,126.49,126.42,27.68489474]
[1764600435246,9.49256449,126.49,126.45,8.69040292]
[1764600435438,0.80216157,126.49,126.45,8.69040292]
[1764600435634,0.80216157,126.49,126.46,8.69040292]
[1764600435947,9.35040292,126.49,126.45,8.69040292]
[1764600436128,0.66,126.48,126.45,16.5986496]
[1764600436328,0.66,126.48,126.45,8.69040292]
[1764600436846,8.83256449,126.49,126.45,8.69040292]
[1764600437050,0.66,126.47,126.44,8.69040292]
[1764600437261,0.14216157,126.46,126.42,8.69040292]
[1764600437438,12.41256449,126.46,126.41,8.69040292]
[1764600437632,13.07256449,126.46,126.42,8.69040292]
[1764600437833,4.24,126.46,126.43,8.69040292]
[1764600438030,0.66,126.46,126.43,8.69040292]
[1764600438226,0.66,126.45,126.42,8.69040292]
[1764600438639,0.66,126.45,126.43,8.69040292]
[1764600438946,0.66,126.45,126.41,8.69040292]
[1764600439133,9.35040292,126.45,126.41,8.69040292]
[1764600439329,0.14216157,126.47,126.39,31.27204316]
[1764600439637,0.80216157,126.47,126.43,8.69040292]
[1764600440363,20.42499474,126.49,126.45,8.69040292]
[1764600440551,8.56630889,126.49,126.47,8.69040292]
[1764600440858,8.56630889,126.49,126.46,8.69040292]
[1764600441258,16.508864,126.52,126.48,8.69040292]
[1764600441259,0.2,126.52,126.48,8.69040292]
[1764600441459,0.2,126.52,126.43,20.03102557]
[1764600441460,0.2,126.52,126.51,8.69040292]
[1764600442267,0.2,126.52,126.51,16.59491639]
[1764600442554,0.2,126.52,126.46,24.2160655]
[1764600442555,17.45457117,126.52,126.46,24.2160655]
[1764600442766,17.45457117,126.52,126.47,8.69040292]
[1764600442965,17.45457117,126.52,126.46,24.2160655]
[1764600442966,17.45457117,126.52,126.48,8.69040292]
[1764600443290,0.66,126.51,126.48,8.69040292]
[1764600443945,0.14216157,126.5,126.47,8.69040292]
[1764600444139,17.64250941,126.5,126.46,8.69040292]
[1764600444458,8.80994492,126.46,126.41,8.69040292]
[1764600444632,8.80994492,126.46,126.35,39.57053437]
[1764600444633,8.83256449,126.45,126.4,8.69040292]
[1764600444836,12.93040292,126.46,126.42,8.69040292]
[1764600445266,0.66,126.45,126.41,8.69040292]
[1764600445488,8.69040292,126.42,126.37,8.69040292]
[1764600445772,8.83256449,126.41,126.36,8.69040292]
[1764600445972,7.9113924,126.4,126.36,16.60402779]
[1764600446177,7.91077459,126.41,126.38,8.69040292]
[1764600446338,16.60055837,126.42,126.36,7.91362487]
[1764600446539,0.67,126.41,126.37,8.69040292]
[1764600447096,9.36040292,126.41,126.36,16.60402779]
[1764600447486,0.67,126.4,126.36,16.60402779]
[1764600447687,9.36040292,126.4,126.36,16.60402779]
[1764600447897,9.36040292,126.4,126.32,8.69040292]
[1764600447898,16.60367367,126.37,126.32,8.69040292]
[1764600448098,7.91327075,126.37,126.34,8.69040292]
[1764600448482,8.59327075,126.37,126.33,8.69040292]
[1764600448688,8.59327075,126.37,126.34,8.69040292]
[1764600449976,7.91255156,126.39,126.35,8.69040292]
[1764600450175,24.03992984,126.4,126.32,7.91640278]
[1764600450176,9.37040292,126.38,126.32,7.91640278]
[1764600450381,9.37040292,126.38,126.33,8.69040292]
[1764600450585,0.14216157,126.39,126.35,8.69040292]
[1764600450832,0.82216157,126.39,126.35,8.69040292]
[1764600451036,8.59082378,126.41,126.37,8.69040292]
[1764600451203,8.59082378,126.41,126.35,0.51]
[1764600451204,17.28038764,126.43,126.38,8.69040292]
[1764600451402,8.95210649,126.41,126.35,16.308864]
[1764600451616,8.69040292,126.38,126.33,8.69040292]
[1764600452033,0.68,126.37,126.34,16.60555251]
[1764600452329,12.95040292,126.4,126.35,8.69040292]
[1764600452623,20.86186086,126.4,126.35,8.69040292]
[1764600452927,0.68,126.39,126.35,8.69040292]
[1764600455423,0.68,126.39,126.36,8.69040292]
[1764600455622,12.17149442,126.4,126.36,8.69040292]
[1764600455830,0.82216157,126.42,126.39,8.69040292]